Cogmind - Beta 12 X1 @@@ ROGUE MODE // 2022.07.06 @ 23:06:44 Player: Espresso Result: Destroyed by S-10 Pest with Light Assault Rifle Performance ------------- Evolutions (2) 1000 Regions Visited (4) 800 Robots Destroyed (12) 60 Value Destroyed (397) 397 Prototype IDs (0) 0 Alien Tech Used (0) 0 Bonus (285) 285 TOTAL SCORE: 2542 Bonus ------- Pacifist 200 Follower Combat Kills 85 Cogmind --------- Core Integrity 0/550 Matter 292/300 Energy 98/100 System Corruption 0% Temperature Cool (0) Movement Core (50) Location -8/Materials Parts ------- > --- POWER (1) -------- (None) > --- PROPULSION (2) --- (None) > --- UTILITY (6) ------ (None) > --- WEAPON (2) ------- (None) > --- INVENTORY (5) ---- Ion Engine Improved Datajack Peak State ------------ > --- POWER ------------ Ion Engine > --- PROPULSION ------- Light Treads Armored Treads > --- UTILITY ---------- Small Storage Unit Visual Processing Unit Improved Sensor Array Improved Sensor Array Hardened Light Armor Plating Long-range Tractor Beam > --- WEAPON ----------- EM Pulse Cannon > --- INVENTORY -------- Ion Engine Particle Gun Light EM Pulse Cannon Light EM Pulse Cannon Light Assault Rifle Improved Datajack [Rating: 23] Favorites ----------- Power Ion Engine Engine Ion Engine Propulsion Light Treads Treads Light Treads Leg Aluminum Leg Utility Small Storage Unit Device Improved Sensor Array Storage Small Storage Unit Processor Visual Processing Unit Protection Hardened Light Armor Plating Weapon Light Assault Rifle Energy Gun Particle Gun Energy Cannon EM Pulse Cannon Ballistic Gun Light Assault Rifle Special Melee Weapon Datajack Build | -11 -10 -10 -9 -8 ------- Run | Scr Mat Min Mat Mat Slots Evolved 4 | . . . 2 2 Power . | . . . . . Propulsion . | . . . . . Utility 4 | . . . 2 2 Weapon . | . . . . . Parts Attached 23 | 7 . 1 4 11 Power 3 | 1 . . . 2 Engine 3 | 1 . . . 2 Core . | . . . . . Reactor . | . . . . . Propulsion 5 | 3 . . . 2 Treads 4 | 2 . . . 2 Leg 1 | 1 . . . . Wheel . | . . . . . Hover . | . . . . . Flight . | . . . . . Utility 6 | 1 . . 3 2 Device 3 | . . . 1 2 Storage 1 | 1 . . . . Processor 1 | . . . 1 . Hackware . | . . . . . Protection 1 | . . . 1 . Artifact . | . . . . . Weapon 9 | 2 . 1 1 5 Energy Gun 2 | . . . 1 1 Energy Cannon 3 | . . . . 3 Ballistic Gun 3 | 2 . . . 1 Ballistic Cannon . | . . . . . Launcher . | . . . . . Special Weapon . | . . . . . Impact Weapon . | . . . . . Slashing Weapon . | . . . . . Piercing Weapon . | . . . . . Special Melee Weapon 1 | . . 1 . . Unidentified Prototypes . | . . . . . Parts Lost 9 | . . . . 9 Power 1 | . . . . 1 Propulsion 2 | . . . . 2 Utility 2 | . . . . 2 Weapon 4 | . . . . 4 Highest Loss Streak 3 | . . . . 3 To Critical Strikes . | . . . . . Average Slot Usage (%) 76 | . 85 85 82 67 Engine 10 | . 14 14 11 7 Treads 19 | . 28 28 22 14 Device 7 | . . . 10 10 Storage 10 | . 14 14 11 7 Processor 4 | . . . 3 7 Protection 3 | . . . 3 6 Energy Gun 3 | . . . 3 4 Energy Cannon 1 | . . . . 3 Ballistic Gun 10 | . 28 20 11 5 Special Melee Weapon 3 | . . 7 7 . Naked Turns 44 | . . . . 44 Heaviest Build 24 | 12 12 12 20 24 Greatest Support 40 | 40 40 40 40 40 Greatest Overweight (x) 1 | . . . . 1 Average Overweight (x) . | . . . . . Largest Inventory Capacity 8 | 8 8 8 8 8 Average Capacity 7 | 6 8 8 8 7 Most Carried 7 | 2 1 2 4 7 Average Carried 3 | . 1 1 3 4 Final Capacity 8 | 8 8 8 8 5 Final Carried 4 | 1 1 2 4 2 Class Distribution -------------------- 100% | Mutant Dominant Class ---------------- Mutant | -10/Materials Mutant | -10/Mines Mutant | -9/Materials Mutant | -8/Materials Resources | -11 -10 -10 -9 -8 ----------- Run | Scr Mat Min Mat Mat Matter Collected 416 | 161 . 64 100 91 Remotely 35 | . . . . 35 Salvage Created 550 | . . . 51 499 Parts 18 | . . . 2 16 Haulers Intercepted . | . . . . . Recyclers Shooed 1 | . . . . 1 Parts Field Recycled . | . . . . . Retrieved Matter . | . . . . . Parts Self-Destructed . | . . . . . Prevented . | . . . . . Kills | -11 -10 -10 -9 -8 ------- Run | Scr Mat Min Mat Mat Combat Hostiles Destroyed 9 | . . . 1 8 Guns 5 | . . . 1 4 Cannons 3 | . . . . 3 AOE 1 | . . . . 1 Classes Destroyed 7 | . . . 1 6 Worker 1 | . . . . 1 Recycler 1 | . . . . 1 Watcher 1 | . . . . 1 Swarmer 2 | . . . . 2 Grunt 4 | . . . . 4 Duelist 1 | . . . . 1 Sentry 2 | . . . 1 1 Best Kill Streak 3 | . . . 1 3 Combat Bots Only 3 | . . . 1 3 Max Kills in Single Turn 1 | . . . 1 1 Gunslinging . | . . . . . Exploded 1 | . . . . 1 Melee . | . . . . . Uniques/NPCs Destroyed . | . . . . . Combat | -11 -10 -10 -9 -8 -------- Run | Scr Mat Min Mat Mat Damage Taken 2006 | . . . 111 1895 Core 568 | . . . 12 556 Absorbed by Shields . | . . . . . Core Remaining (%) 99 | 100 . 100 97 . Volleys Fired 67 | 1 . . 3 63 Largest 2 | 2 . . 2 2 Hottest 85 | 40 . . 85 85 Shots Fired 81 | 2 . . 6 73 Gun 56 | 2 . . 6 48 Cannon 25 | . . . . 25 Launcher . | . . . . . Special . | . . . . . Kinetic 39 | 2 . . 3 34 Thermal 17 | . . . 3 14 Explosive . | . . . . . Electromagnetic 25 | . . . . 25 Robot Hit Streak 8 | 2 . . 4 8 Robot Miss Streak 7 | . . . 1 7 Penetration Max . | . . . . . Secondary Targets . | . . . . . Shots Hit Robots 63 | 2 . 4 6 51 Core Hits 27 | . . . 2 25 Critical Kills . | . . . . . Critical Parts Destroyed . | . . . . . Critical Strikes 3 | . . . . 3 Burn 1 | . . . . 1 Corrupt 2 | . . . . 2 Melee Attacks 6 | . . 4 2 . Impact . | . . . . . Slashing . | . . . . . Piercing . | . . . . . Sneak Attacks 6 | . . 4 2 . Combat Hostiles . | . . . . . Follow-up Attacks . | . . . . . Damage Inflicted 1058 | 20 . . 49 989 Guns 346 | 20 . . 49 277 Cannons 445 | . . . . 445 Explosions 245 | . . . . 245 Melee . | . . . . . Ramming 22 | . . . . 22 Kinetic 207 | 20 . . 16 171 Thermal 384 | . . . 33 351 Explosive . | . . . . . Electromagnetic 445 | . . . . 445 Impact . | . . . . . Slashing . | . . . . . Piercing . | . . . . . Highest Corruption . | . . . . . Average Corruption . | . . . . . Corruption Purged . | . . . . . Corruption Blocked . | . . . . . Overload Shots . | . . . . . Overflow Damage . | . . . . . Projectiles . | . . . . . Explosions . | . . . . . Melee . | . . . . . Knockbacks 1 | . . . . 1 Impact 1 | . . . . 1 Kinetic . | . . . . . Secondary . | . . . . . Self-Inflicted Damage 71 | . . . . 71 Shots 3 | . . . . 3 Rammed 5 | . . . . 5 Targets Rammed 5 | . . . . 5 Kicked . | . . . . . Crushed . | . . . . . Highest Temperature 281 | . . . 109 281 Average Temperature 85 | . . . 63 87 Received Heat Transfer 774 | . . . 36 738 Effects 5 | . . . . 5 Energy Bleed 2 | . . . . 2 Interference 3 | . . . . 3 Siege Activations . | . . . . . Robots Corrupted . | . . . . . Combat Hostiles . | . . . . . Parts Fried 7 | . . . . 7 Impact Corruptions . | . . . . . Robots Melted . | . . . . . Combat Hostiles . | . . . . . Parts Melted 1 | . . . 1 . Heat Transferred 551 | . . . 74 477 Parts Sabotaged . | . . . . . Parts Stolen . | . . . . . Parts Stripped . | . . . . . Power Chain Reactions 4 | . . . . 4 Missiles Intercepted . | . . . . . Alert | -11 -10 -10 -9 -8 ------- Run | Scr Mat Min Mat Mat Peak Influence 146 | . . . 91 146 Initial 38 | . . . . 38 Average 36 | . . . 37 61 Maximum Alert Level . | . . . . . Low Security (%) 100 | 100 100 100 100 100 Level 1 . | . . . . . Level 2 . | . . . . . Level 3 . | . . . . . Level 4 . | . . . . . Level 5 . | . . . . . High Security . | . . . . . Max Security . | . . . . . Squads Dispatched 3 | . . . 1 2 Investigation 1 | . . . . 1 Extermination . | . . . . . Reinforcement 2 | . . . 1 1 Assault . | . . . . . Garrison . | . . . . . Intercept . | . . . . . Searches Triggered . | . . . . . Construction Impeded . | . . . . . Haulers Reinforced . | . . . . . Active Scanning Responses . | . . . . . Cargo Convoy Interrupts . | . . . . . Stealth | -11 -10 -10 -9 -8 --------- Run | Scr Mat Min Mat Mat Distress Signals 3 | . . . . 3 Communications Jammed . | . . . . . Distress Signals . | . . . . . Times Spotted 30 | . . . 4 26 Peak Tracking Total 13 | . . . 2 13 Tactical Retreats 2 | . . . . 2 Traps | -11 -10 -10 -9 -8 ------- Run | Scr Mat Min Mat Mat Traps Triggered 1 | . . . . 1 Indirectly . | . . . . . Trap Hack Attempts . | . . . . . Triggered . | . . . . . Disarmed . | . . . . . Reprogrammed . | . . . . . Reused . | . . . . . Traps Extracted . | . . . . . Installed . | . . . . . Triggered . | . . . . . Machines | -11 -10 -10 -9 -8 ---------- Run | Scr Mat Min Mat Mat Machines Disabled 2 | . . . . 2 Max in Single Turn 1 | . . . . 1 Machines Sabotaged . | . . . . . Garrisons Compromised . | . . . . . Overloaded Fab Kills . | . . . . . Hacking | -11 -10 -10 -9 -8 --------- Run | Scr Mat Min Mat Mat Machines Accessed 1 | . . . 1 . Terminals 1 | . . . 1 . Fabricators . | . . . . . Repair Stations . | . . . . . Recycling Units . | . . . . . Scanalyzers . | . . . . . Garrison Access . | . . . . . Total Hacks 4 | . . . 4 . Successful 3 | . . . 3 . Failed 1 | . . . 1 . Catastrophic . | . . . . . Database Lockouts . | . . . . . Manual . | . . . . . Terminals 4 | . . . 4 . Fabricators . | . . . . . Repair Stations . | . . . . . Recycling Units . | . . . . . Scanalyzers . | . . . . . Garrison Access . | . . . . . Terminal Hacks 3 | . . . 3 . Record 3 | . . . 3 . Fabricator Hacks . | . . . . . Repair Station Hacks . | . . . . . Recycling Unit Hacks . | . . . . . Scanalyzer . | . . . . . Garrison Access Hacks . | . . . . . Unauthorized Hacks . | . . . . . Terminals . | . . . . . Fabricators . | . . . . . Repair Stations . | . . . . . Recycling Units . | . . . . . Scanalyzers . | . . . . . Garrison Access . | . . . . . Data Cores Recovered . | . . . . . Used . | . . . . . Hacking Detections 1 | . . . 1 . Full Trace Events . | . . . . . Feedback Events . | . . . . . Feedback Blocked . | . . . . . Robot Schematics Acquired . | . . . . . Robots Built . | . . . . . Authchips . | . . . . . Time . | . . . . . Total Robot Build Rating . | . . . . . Part Schematics Acquired . | . . . . . Parts Built . | . . . . . Authchips . | . . . . . Time . | . . . . . Total Part Build Rating . | . . . . . Parts Repaired . | . . . . . Time . | . . . . . Parts Recycled . | . . . . . Recycled Matter . | . . . . . Retrieved Matter . | . . . . . Retrieved Components . | . . . . . Parts Scanalyzed . | . . . . . Part Schematics Acquired . | . . . . . Parts Damaged . | . . . . . Bothacking | -11 -10 -10 -9 -8 ------------ Run | Scr Mat Min Mat Mat Used RIF Installer . | . . . . . Robots Hacked 4 | . . 2 2 . Non-combat 4 | . . 2 2 . Combat . | . . . . . Robot Hacks Applied 5 | . . 3 2 . parse_system 2 | . . 2 . . no_distress 2 | . . 1 1 . find_recycling 1 | . . . 1 . Relay Couplers Released . | . . . . . Fabnet Peak Effective % . | . . . . . Robots Rewired . | . . . . . Allies Hacked . | . . . . . Hacks Repelled . | . . . . . Allies | -11 -10 -10 -9 -8 -------- Run | Scr Mat Min Mat Mat Total Allies 3 | . . 3 . . Largest Group 3 | . . 3 3 . Highest-Rated Group 40 | . . 40 40 . Highest-Rated Ally 16 | . . 16 16 . Total Orders 3 | . . 3 . . GUARD 3 | . . 3 . . Ally Attacks 28 | . . . 28 . Total Damage 280 | . . . 280 . Kills 3 | . . . 3 . Allies Corrupted . | . . . . . Allies Melted . | . . . . . Intel | -11 -10 -10 -9 -8 ------- Run | Scr Mat Min Mat Mat Robot Analysis Total . | . . . . . Derelict Logs Recovered 1 | . . 1 . . Drone Launches . | . . . . . Drone Recoveries . | . . . . . Exploration | -11 -10 -10 -9 -8 ------------- Run | Scr Mat Min Mat Mat Turns Passed 1255 | 69 30 295 293 568 Spaces Moved 670 | 40 17 173 151 289 Core 96 | 7 . . . 89 Treads 569 | 28 17 173 151 200 Legs 5 | 5 . . . . Wheels . | . . . . . Hover . | . . . . . Flight . | . . . . . Fastest Speed 50 | 50 160 160 160 50 Average Speed 146 | 135 160 160 160 132 Slowest Speed 250 | 160 160 160 160 250 Overloaded Moves . | . . . . . Propulsion Burnouts . | . . . . . Robots Hopped . | . . . . . Cave-ins Triggered . | . . . . . Exploration Rate (%) 21 | 3 6 50 18 29 Regions Visited 4 Branch Regions 1 Pre-discovered Areas 1 | . . 1 . . Known Exits Taken . | . . . . . Unknown Exits Taken 4 | 1 1 1 1 . Scrap Searched 1 | . . 1 . . Spaces Dug . | . . . . . Terrain Destroyed 11 | . . . . 11 Melee . | . . . . . Projectile . | . . . . . AOE 11 | . . . . 11 Terrain Rammed . | . . . . . Walls Destroyed . | . . . . . Machines Disabled . | . . . . . Actions | -11 -10 -10 -9 -8 --------- Run | Scr Mat Min Mat Mat Total 862 | 51 20 189 194 408 Wait 76 | . 4 11 33 28 Move 666 | 39 16 172 150 289 Hop . | . . . . . Pick Up 13 | 3 . 1 2 7 Fast Attach 10 | 5 . . 3 2 Attach 8 | 1 . . . 7 Detach . | . . . . . Swap 5 | 1 . 1 1 2 Drop 6 | 1 . . . 5 Fire 67 | 1 . . 3 63 Melee 6 | . . 4 2 . Ram 3 | . . . . 3 Kick . | . . . . . Crush 2 | . . . . 2 Escape Stasis . | . . . . . Rewire . | . . . . . Trap . | . . . . . Miscellaneous . | . . . . . Route ------- -11/Scrapyard -10/Materials -10/Mines -9/Materials -8/Materials History --------- Turn | Location | Event 27 | -11/Scrapyard | Discovered new exit (range 14) 70 | -11/Scrapyard | Entered Materials 70 | -10/Materials | Discovered new exit (range 14) 100 | -10/Materials | Entered Mines 112 | -10/Mines | Assisted by bots powering up and referring to "LRC-V3" 116 | -10/Mines | Met a Derelict bent on vengeance 304 | -10/Mines | Learned location of Mines (-9) 316 | -10/Mines | Build established: Mutant 364 | -10/Mines | Discovered new exit (range 10) 395 | -10/Mines | Entered Materials 395 | -9/Materials | Accompanied by 3 allies 395 | -9/Materials | Evolved 2 slots: Utility x2 657 | -9/Materials | Discovered new exit (range 10) 688 | -9/Materials | Entered another Materials area 688 | -8/Materials | Evolved 2 slots: Utility x2 1168 | -8/Materials | Released all parts (6) 1204 | -8/Materials | Core integrity fell below 50% 1237 | -8/Materials | Core integrity fell below 20% 1256 | -8/Materials | Destroyed by S-10 Pest with Light Assault Rifle Last Messages --------------- K-01 Serf collects debris. Dropped Particle Gun. Acquired Spread Laser. ALERT: Suspicious intruders detected, dispatching Specialist reinforcements to area. Triggered Alarm Trap. An alarm sounds. ALERT: Alarm triggered, dispatching investigation squad. Ion Engine destroyed. S-10 Pest destroyed. Acquired 8 matter. Spread Laser destroyed. U-05 Engineer lays Concrete. L-31 Rogue destroyed. Lgt. Assault Rifle destroyed. Slammed into S-10 Pest. Critical hit (Burn: +37). K-01 Serf cleans the Purification Channel. Slammed into K-01 Serf. K-01 Serf knocked back. Map ----- +----------------------------------------------------+ | ??????????????????????????????????# #??????# " | | ??????????????????????????????????# ######## " | | ???????????????????????????????#### ?? " | | ???????????????????????????????? ??? " | | ????????????????????????????????? ??? | | ?????????????????????????????????? ????? | | ??????????????????????????????????# ?????? | | ??????????????????????????????????# ######## # | | ??????????????????????????????????# # [ *!=# # | | ??????????????????????????????????# # """%# # | | ??????????????????????????????????# / """=/! # | | ??????????????????????????????????#% # """%#/ # | | ??????????????????????????????????# # *# # | | ??????????????????????????????????## ## """ # # | | ???????????????????????????????????# ## """ # # | | ???????????????????????????????????# ## """ # # | | ???????????????????????????????????# ## # # | | ???????????????????????????????????# ## """ # # | | ??????????????????????????????######+## """ # # | | ??????????????????????????????# ## """ # # | | ????????????????# ????????????# " ## # | | ????????????????? ############ """ #####?### | | ??????????????????? # """ ##??????# | | ????????????????????? # """ #??????# | | ??????????????????????? # "" ######### | | ????????????????????????#@ # """ ## | | ????????????????????????# # "" ## % | | ????????????????????????# # """ ## | | ????????????????????????# # " ## | | ????????????????????????# #= ##[ | | ????????????????????????# # ## % | | ????????????????????????# # #"**! !! | | ????????????????????????# s###/#####%%% !! | | ????????????????????????# s %!%[ ! | | ????????????????????????# ]!!! | | ??????????????????? =** ! | | ????????????????# =* ######## | | ????????????????#"" ** #??????? | | ?????????????????"" #??????? | | ?????????????????"T """ #??????? | | ?????????????????"" """"" #??????? | | ?????????????????"" """" #??????? | | ????????????????? ?"""" #??????? | | ????????????????# ???"" ######## #??????? | | ????????????????# ????? #??????# ??????? | | ???????????????? ?????? +??????# ??????? | | ?????????????????????????# #####??????# "??????? | | ?????????????????????????# ???????????+ "??????? | | ?????????????????????????? ???????????# "??????? | | ??????????????????????????????????????# ???????? | +----------------------------------------------------+ Best States ------------- Heat Dissipation 31 Energy Generation 10 Energy Capacity 250 Matter Stores 300 Matter Capacity 300 Sight Range 18 Robot Scan Range 15 Terrain Scan Density 10 Armor Coverage 150 Evasion (%) 50 Recoil Reduction 2 Item Schematics ----------------- None Robot Schematics ------------------ None Fabricated ------------ Nothing Alien Tech Used ----------------- None Achievements -------------- None Challenges ------------ None Game ------ Seed TractorHardenedCharge Manual? 0 Play Time 00:17:14 Cumulative 3.4 hours Start 2022.07.06 @ 22:51:44 End 2022.07.06 @ 23:06:44 Sessions 1 Manual Loads 0 Difficulty Rogue Special Mode None Game No. 20 Rogue 20 Adventurer 0 Explorer 0 Win Type - Total 0 Types 0/0/0/0/0/0/0/0/0 Lore% 6 Gallery% 13 Achievement% 17 Wizard Run 0 Options --------- ASCII 0 Keyboard 0 Movement Numpad Keybinds 0 Fullscreen 1 Font 24/Terminus Map View 76x50 Tactical HUD 0 Map Filters NONE Filters NONE Steam 1 RUN: 5e3395bb-329c-46c0-9b67-6c2680c1980c